fUST/lending_fUST_20250219
["ID","MTS","AMOUNT","RATE_DAILY","PERIOD"]
[353645033,1739980243821,-500.0,0.00014849,2]
[353645034,1739980243831,-4172.37,0.00014849,2]
[353645035,1739980243840,-587.98,0.00014849,2]
[353645036,1739980243850,-3853.92,0.00014849,2]
[353645037,1739980243859,-745.9,0.00014849,2]
[353645038,1739980243873,-1538.8,0.00014849,2]
[353645039,1739980243883,-1141.97,0.00014849,2]
[353645040,1739980243893,-481.0703495,0.00014849,2]
[353645041,1739980243903,-1269.61,0.00014849,2]
[353645042,1739980243913,-7438.69753278,0.00014863,2]
[353645043,1739980243922,-500.0,0.00014873,2]
[353645044,1739980243931,-500.0,0.00014873,2]
[353645045,1739980243941,-500.0,0.00014873,2]
[353645046,1739980243949,-500.0,0.00014873,2]
[353645047,1739980243958,-500.0,0.00014873,2]
[353645048,1739980243968,-200.04975345,0.00014873,2]
[353645049,1739980243978,-190.76057223,0.00014873,2]
[353645050,1739980243988,-500.39970858,0.00014873,2]
[353645051,1739980243997,-500.0,0.00014873,2]
[353645052,1739980244007,-635.95312818,0.00014873,2]
[353645053,1739980244017,-500.0,0.00014873,2]
[353645054,1739980244028,-151.04002065,0.00014873,2]
[353645055,1739980244038,-500.0,0.00014873,2]
[353645056,1739980244048,-500.50517202,0.00014873,2]
[353645057,1739980244057,-151.04211177,0.00014873,2]
[353645058,1739980244067,-500.0,0.00014873,2]
[353645059,1739980244076,-251.09701182,0.00014873,2]
[353645060,1739980244087,-13275.53870192,0.00014882,2]
[353645061,1739980244097,-151.0,0.000149,2]
[353645062,1739980244106,-151.0,0.000149,2]
[353645063,1739980244116,-426539.106736,0.000149,2]
[353645064,1739980244128,-500.0,0.00014931,2]
[353645065,1739980244142,-906.74,0.00014931,2]
[353645066,1739980244156,-1583.46,0.00014931,2]
[353645067,1739980244170,-12029.31,0.00014931,2]
[353645068,1739980244182,-1188.37,0.00014931,2]
[353645069,1739980244193,-5134.26,0.00014931,2]
[353645070,1739980244207,-1415.39,0.00014931,2]
[353645071,1739980244219,-500.0,0.00014931,2]
[353645072,1739980244232,-4172.37,0.00014931,2]
[353645073,1739980244245,-587.98,0.00014931,2]
[353645074,1739980244258,-3853.92,0.00014931,2]
[353645075,1739980244273,-745.9,0.00014931,2]
[353645076,1739980244287,-1538.8,0.00014931,2]
[353645077,1739980244300,-1141.97,0.00014931,2]
[353645078,1739980244314,-1269.61,0.00014931,2]
[353645079,1739980244326,-4092.53,0.00015,2]
[353645080,1739980244340,-151.0,0.00015,2]
[353645081,1739980244352,-1000.0,0.00015,15]
[353645082,1739980244366,-1000.0,0.00015,4]
[353645083,1739980244379,-500.0,0.00015013,2]
[353645084,1739980244392,-906.74,0.00015013,2]
[353645085,1739980244402,-1583.46,0.00015013,2]
[353645086,1739980244413,-12029.31,0.00015013,2]
[353645087,1739980244425,-1188.37,0.00015013,2]
[353645088,1739980244436,-5134.26,0.00015013,2]
[353645089,1739980244449,-1415.39,0.00015013,2]
[353645090,1739980244461,-500.0,0.00015013,2]
[353645091,1739980244475,-4172.37,0.00015013,2]
[353645092,1739980244488,-587.98,0.00015013,2]
[353645093,1739980244501,-3853.92,0.00015013,2]
[353645094,1739980244513,-745.9,0.00015013,2]
[353645096,1739980244527,-1538.8,0.00015013,2]
[353645098,1739980244538,-1141.97,0.00015013,2]
[353645099,1739980244549,-1269.61,0.00015013,2]
[353645102,1739980244559,-7438.69753278,0.00015085,2]
[353645107,1739980244570,-500.0,0.00015095,2]
[353645111,1739980244582,-906.74,0.00015095,2]
[353645115,1739980244597,-1583.46,0.00015095,2]
[353645119,1739980244610,-12029.31,0.00015095,2]
[353645121,1739980244621,-1188.37,0.00015095,2]
[353645123,1739980244632,-5134.26,0.00015095,2]
[353645127,1739980244644,-1415.39,0.00015095,2]
[353645129,1739980244655,-528.08,0.00015095,2]
[353645131,1739980244668,-4172.37,0.00015095,2]
[353645133,1739980244680,-587.98,0.00015095,2]
[353645136,1739980244691,-3853.92,0.00015095,2]
[353645137,1739980244702,-745.9,0.00015095,2]
[353645138,1739980244713,-1538.8,0.00015095,2]
[353645139,1739980244724,-1141.97,0.00015095,2]
[353645140,1739980244735,-1269.61,0.00015095,2]
[353645141,1739980244745,-1183.40155706,0.000151,2]
[353645142,1739980244756,-417.07256354,0.00015129,2]
[353645143,1739980244767,-635.70642689,0.00015178,2]
[353645144,1739980244779,-906.74,0.00015178,2]
[353645145,1739980244791,-1583.46,0.00015178,2]
[353645146,1739980244802,-12029.31,0.00015178,2]
[353645148,1739980244814,-1188.37,0.00015178,2]
[353645150,1739980244827,-5134.26,0.00015178,2]
[353645152,1739980244838,-1415.39,0.00015178,2]
[353645154,1739980244849,-4172.37,0.00015178,2]
[353645156,1739980244861,-587.98,0.00015178,2]
[353645158,1739980244873,-3853.92,0.00015178,2]
[353645161,1739980244884,-745.9,0.00015178,2]
[353645163,1739980244898,-1538.8,0.00015178,2]
[353645165,1739980244909,-1141.97,0.00015178,2]
[353645167,1739980244920,-10000.0,0.000152,2]
[353645169,1739980244932,-151.0,0.000152,2]
[353645172,1739980244943,-906.74,0.0001526,2]
[353645174,1739980244954,-1583.46,0.0001526,2]
[353645176,1739980244965,-12029.31,0.0001526,2]
[353645178,1739980244976,-1188.37,0.0001526,2]
[353645180,1739980244987,-5134.26,0.0001526,2]
[353645183,1739980244999,-1415.39,0.0001526,2]
[353645185,1739980245011,-4172.37,0.0001526,2]
[353645187,1739980245022,-587.98,0.0001526,2]
[353645189,1739980245034,-3853.92,0.0001526,2]
[353645192,1739980245046,-745.9,0.0001526,2]
[353645194,1739980245057,-1538.8,0.0001526,2]
[353645196,1739980245069,-1141.97,0.0001526,2]
[353645198,1739980245080,-552.97310188,0.00015272,2]
[353645200,1739980245091,-906.74,0.00015342,2]
[353645203,1739980245102,-1583.46,0.00015342,2]
[353645205,1739980245113,-12029.31,0.00015342,2]
[353645207,1739980245124,-1188.37,0.00015342,2]
[353645209,1739980245136,-5134.26,0.00015342,2]
[353645212,1739980245147,-1415.39,0.00015342,2]
[353645214,1739980245159,-4172.37,0.00015342,2]
[353645216,1739980245170,-587.98,0.00015342,2]
[353645218,1739980245181,-3853.92,0.00015342,2]
[353645220,1739980245192,-745.9,0.00015342,2]
[353645223,1739980245205,-1538.8,0.00015342,2]
[353645225,1739980245216,-1141.97,0.00015342,2]
[353645227,1739980245228,-552.97310188,0.00015372,2]
[353645229,1739980245238,-151.0,0.000154,2]
[353645231,1739980245247,-3000.0,0.00015406,2]
[353645233,1739980245257,-201.77025015,0.00015421,2]
[353645269,1739980245444,-798.22974985,0.00015421,2]
[353645272,1739980245454,-385.00764503,0.00015421,2]
[353645306,1739980245704,-500.0,0.00010958,2]
[353645308,1739980245714,-500.0,0.00010958,2]
[353645310,1739980245723,-119.24557536,0.00010958,2]
[353645312,1739980245741,-154.32934693,0.00010958,2]
[353645314,1739980245753,-355.23343573,0.00010958,2]
[353645317,1739980245771,-144.76656427,0.00010958,2]
[353645320,1739980245781,-500.0,0.00010958,2]
[353645323,1739980245791,-500.0,0.00010958,2]
[353645325,1739980245800,-500.0,0.00010958,2]
[353645327,1739980245810,-500.0,0.00010958,2]
[353645329,1739980245823,-500.0,0.00010958,2]
[353645331,1739980245832,-500.0,0.00010958,2]
[353645333,1739980245842,-500.0,0.00010958,2]
[353645335,1739980245851,-168.34246315,0.00010958,2]
[353645337,1739980245862,-526.41112908,0.00010958,2]
[353645339,1739980245871,-500.0,0.00010958,2]
[353645341,1739980245881,-500.0,0.00010958,2]
[353645343,1739980245892,-500.0,0.00010958,2]
[353645345,1739980245903,-500.0,0.00010958,2]
[353645347,1739980245913,-298.4007622,0.00010958,2]
[353645349,1739980245923,-500.0,0.00013699,2]
[353645351,1739980245932,-291.47469402,0.00013699,2]
[353645353,1739980245942,-500.0,0.00013699,2]
[353645355,1739980245951,-1269.61,0.00015178,2]
[353645357,1739980245961,-1269.61,0.0001526,2]
[353645359,1739980245972,-1269.61,0.00015342,2]
[353645361,1739980245982,-149.55008775,0.00015421,2]
[353645363,1739980245991,-1000.0,0.00015421,2]
[353645365,1739980246000,-500.0,0.00015421,2]
[353645367,1739980246010,-1000.0,0.00015421,2]
[353645369,1739980246019,-498.60686308,0.00015421,2]
[353645371,1739980246029,-1000.0,0.00015421,2]
[353645373,1739980246037,-906.74,0.00015424,2]
[353645375,1739980246046,-1583.46,0.00015424,2]
[353645377,1739980246055,-12029.31,0.00015424,2]
[353645379,1739980246064,-5134.26,0.00015424,2]
[353645381,1739980246073,-1188.37,0.00015424,2]
[353645383,1739980246083,-1415.39,0.00015424,2]
[353645385,1739980246093,-4172.37,0.00015424,2]
[353645387,1739980246103,-587.98,0.00015424,2]
[353645389,1739980246113,-3853.92,0.00015424,2]
[353645391,1739980246122,-745.9,0.00015424,2]
[353645393,1739980246132,-1538.8,0.00015424,2]
[353645395,1739980246141,-1141.97,0.00015424,2]
[353645397,1739980246151,-1269.61,0.00015424,2]
[353645399,1739980246160,-552.97310188,0.00015472,2]
[353645401,1739980246170,-162.71656321,0.00015489,2]
[353645403,1739980246179,-162.71656321,0.00015489,2]
[353645405,1739980246188,-162.71,0.00015489,2]
[353645407,1739980246197,-156.55855535,0.00015489,2]
[353645409,1739980246207,-156.55855535,0.00015489,2]
[353645410,1739980246216,-156.55855535,0.00015489,2]
[353645413,1739980246225,-156.55855535,0.00015489,2]
[353645414,1739980246237,-156.55855535,0.00015489,2]
[353645417,1739980246246,-156.55855535,0.00015489,2]
[353645419,1739980246256,-156.55855535,0.00015489,2]
[353645421,1739980246266,-156.55855535,0.00015489,2]
[353645423,1739980246277,-156.55855535,0.00015489,2]
[353645425,1739980246287,-156.55855535,0.00015489,2]
[353645427,1739980246296,-156.55855535,0.00015489,2]
[353645429,1739980246306,-156.55855535,0.00015489,2]
[353645431,1739980246316,-156.55855535,0.00015489,2]
[353645433,1739980246325,-156.55855535,0.00015489,2]
[353645435,1739980246335,-156.55855535,0.00015489,2]
[353645437,1739980246344,-156.55,0.00015489,2]
[353645439,1739980246354,-302.52650604,0.00015489,2]
[353645441,1739980246364,-302.52650604,0.00015489,2]
[353645443,1739980246373,-302.52650604,0.00015489,2]
[353645445,1739980246382,-302.52650604,0.00015489,2]
[353645447,1739980246392,-302.52650604,0.00015489,2]
[353645449,1739980246402,-302.52650604,0.00015489,2]
[353645451,1739980246411,-302.52650604,0.00015489,2]
[353645453,1739980246421,-302.52650604,0.00015489,2]
[353645455,1739980246430,-302.52650604,0.00015489,2]
[353645457,1739980246440,-302.52650604,0.00015489,2]
[353645459,1739980246450,-302.52650604,0.00015489,2]
[353645461,1739980246459,-302.52650604,0.00015489,2]
[353645463,1739980246469,-302.52650604,0.00015489,2]
[353645465,1739980246479,-302.52650604,0.00015489,2]
[353645467,1739980246488,-302.52650604,0.00015489,2]
[353645469,1739980246498,-302.52650604,0.00015489,2]
[353645471,1739980246507,-302.52650604,0.00015489,2]
[353645473,1739980246516,-302.52650604,0.00015489,2]
[353645475,1739980246526,-302.52650604,0.00015489,2]
[353645477,1739980246536,-302.52,0.00015489,2]
[353645479,1739980246545,-906.74,0.00015506,2]
[353645481,1739980246555,-1583.46,0.00015506,2]
[353645483,1739980246564,-12029.31,0.00015506,2]
[353645485,1739980246574,-5134.26,0.00015506,2]
[353645487,1739980246583,-1188.37,0.00015506,2]
[353645489,1739980246592,-1415.39,0.00015506,2]
[353645491,1739980246602,-4172.37,0.00015506,2]
[353645493,1739980246611,-587.98,0.00015506,2]
[353645495,1739980246621,-3853.92,0.00015506,2]
[353645497,1739980246630,-745.9,0.00015506,2]
[353645499,1739980246639,-1538.8,0.00015506,2]
[353645501,1739980246649,-1141.97,0.00015506,2]
[353645503,1739980246659,-1269.61,0.00015506,2]
[353645505,1739980246668,-557.1188801,0.00015534,2]
[353645507,1739980246678,-557.1188801,0.00015534,2]
[353645509,1739980246687,-552.97310188,0.00015572,2]
[353645511,1739980246697,-906.84622549,0.00015589,2]
[353645513,1739980246707,-1583.55568457,0.00015589,2]
[353645515,1739980246716,-12029.3986,0.00015589,2]
[353645517,1739980246725,-5134.34862949,0.00015589,2]
[353645519,1739980246735,-1188.60691268,0.00015589,2]
[353645521,1739980246744,-1415.43749468,0.00015589,2]
[353645523,1739980246753,-4172.54348654,0.00015589,2]
[353645525,1739980246763,-588.15244067,0.00015589,2]
[353645527,1739980246773,-3853.95155046,0.00015589,2]
[353645529,1739980246782,-746.03513158,0.00015589,2]
[353645531,1739980246792,-1539.01035416,0.00015589,2]
[353645533,1739980246801,-1142.20858075,0.00015589,2]
[353645535,1739980246811,-1269.74093691,0.00015589,2]
[353645537,1739980246823,-465.80351748,0.00015592,2]
[353645539,1739980246832,-500.0,0.00015644,2]
[353645541,1739980246842,-552.97310188,0.00015672,2]
[353645543,1739980246851,-552.97310188,0.00015772,2]
[353645545,1739980246860,-363.458537,0.00015775,2]
[353645547,1739980246870,-500.0,0.00015863,2]
[353645549,1739980246880,-500.0,0.00015863,2]
[353645551,1739980246891,-552.97310188,0.00015872,2]
[353645553,1739980246900,-500.18961432,0.000159,2]
[353645555,1739980246909,-417.07256354,0.00015919,2]
[353645557,1739980246919,-552.97310188,0.00015972,2]
[353645559,1739980246929,-5000.0,0.00016,2]
[353645561,1739980246938,-1000.0,0.00016,16]
[353645563,1739980246949,-1000.0,0.00016,5]
[353645565,1739980246959,-1000.0,0.00016,2]
[353645567,1739980246969,-160.0,0.0001605,4]
[353645569,1739980246979,-552.97310188,0.00016072,2]
[353645571,1739980246988,-499.0,0.00016164,2]
[353645573,1739980246998,-2213.165776,0.00016166,2]
[353645575,1739980247007,-552.97310188,0.00016172,2]
[353645577,1739980247016,-261.70172979,0.00016173,2]
[353645579,1739980247026,-184.97113629,0.00016192,2]
[353645581,1739980247035,-5000.0,0.000162,2]
[353645583,1739980247045,-59843.7751385,0.000162,2]
[353645585,1739980247055,-59843.77513849,0.000162,2]
[353645588,1739980247065,-59843.77513849,0.000162,2]
[353645590,1739980247075,-59843.77513849,0.000162,2]
[353645592,1739980247083,-2258.0,0.00016233,2]
[353645594,1739980247093,-604.0,0.0001626,2]
[353645595,1739980247103,-604.0,0.0001626,2]
[353645597,1739980247113,-604.0,0.0001626,2]
[353645600,1739980247123,-604.0,0.0001626,2]
[353645602,1739980247133,-604.0,0.0001626,2]
[353645604,1739980247142,-604.0,0.0001626,2]
[353645606,1739980247152,-604.0,0.0001626,2]
[353645608,1739980247161,-604.0,0.0001626,2]
[353645610,1739980247171,-604.0,0.0001626,2]
[353645611,1739980247181,-604.0,0.0001626,2]
[353645613,1739980247191,-604.0,0.0001626,2]
[353645615,1739980247200,-708.0,0.00016261,2]
[353645617,1739980247209,-708.0,0.00016261,2]
[353645620,1739980247219,-708.0,0.00016261,2]
[353645622,1739980247229,-708.0,0.00016261,2]
[353645623,1739980247238,-708.0,0.00016261,2]
[353645625,1739980247248,-708.0,0.00016261,2]
[353645627,1739980247257,-708.0,0.00016261,2]
[353645629,1739980247266,-708.0,0.00016261,2]
[353645631,1739980247276,-708.0,0.00016261,2]
[353645633,1739980247286,-708.0,0.00016261,2]
[353645635,1739980247295,-167011.05456678,0.00016262,5]
[353645637,1739980247305,-42311.76071167,0.00016262,5]
[353645639,1739980247314,-604.0,0.00016262,2]
[353645641,1739980247323,-604.0,0.00016262,2]
[353645643,1739980247332,-604.0,0.00016262,2]
[353645645,1739980247342,-604.0,0.00016262,2]
[353645647,1739980247351,-604.0,0.00016262,2]
[353645649,1739980247360,-604.0,0.00016262,2]
[353645651,1739980247370,-604.0,0.00016262,2]
[353645653,1739980247380,-604.0,0.00016262,2]
[353645656,1739980247390,-604.0,0.00016262,2]
[353645658,1739980247399,-708.0,0.00016263,2]
[353645660,1739980247409,-708.0,0.00016263,2]
[353645662,1739980247419,-708.0,0.00016263,2]
[353645664,1739980247428,-708.0,0.00016263,2]
[353645666,1739980247438,-708.0,0.00016263,2]
[353645668,1739980247447,-708.0,0.00016263,2]
[353645670,1739980247457,-708.0,0.00016263,2]
[353645672,1739980247467,-708.0,0.00016263,2]
[353645674,1739980247477,-708.0,0.00016263,2]
[353645676,1739980247487,-708.0,0.00016263,2]
[353645678,1739980247496,-604.0,0.00016264,2]
[353645680,1739980247506,-604.0,0.00016264,2]
[353645682,1739980247515,-604.0,0.00016264,2]
[353645684,1739980247524,-604.0,0.00016264,2]
[353645685,1739980247533,-604.0,0.00016264,2]
[353645687,1739980247542,-604.0,0.00016264,2]
[353645690,1739980247552,-604.0,0.00016264,2]
[353645692,1739980247561,-604.0,0.00016264,2]
[353645694,1739980247571,-604.0,0.00016264,2]
[353645696,1739980247580,-604.0,0.00016264,2]
[353645697,1739980247590,-604.0,0.00016264,2]
[353645700,1739980247599,-604.0,0.00016264,2]
[353645701,1739980247609,-604.0,0.00016264,2]
[353645703,1739980247618,-604.0,0.00016264,2]
[353645705,1739980247627,-604.0,0.00016264,2]
[353645707,1739980247637,-708.0,0.00016265,2]
[353645709,1739980247647,-708.0,0.00016265,2]
[353645711,1739980247656,-708.0,0.00016265,2]
[353645713,1739980247665,-708.0,0.00016265,2]
[353645715,1739980247675,-708.0,0.00016265,2]
[353645718,1739980247684,-708.0,0.00016265,2]
[353645719,1739980247694,-708.0,0.00016265,2]
[353645722,1739980247704,-708.0,0.00016265,2]
[353645723,1739980247713,-708.0,0.00016265,2]
[353645725,1739980247723,-708.0,0.00016265,2]
[353645728,1739980247732,-708.0,0.00016265,2]
[353645730,1739980247741,-708.0,0.00016265,2]
[353645732,1739980247751,-708.0,0.00016265,2]
[353645733,1739980247760,-708.0,0.00016265,2]
[353645736,1739980247770,-604.0,0.00016267,2]
[353645738,1739980247779,-604.0,0.00016267,2]
[353645740,1739980247789,-604.0,0.00016267,2]
[353645742,1739980247798,-604.0,0.00016267,2]
[353645744,1739980247808,-604.0,0.00016267,2]
[353645746,1739980247821,-604.0,0.00016267,2]
[353645757,1739980247910,-604.0,0.00016267,2]
[353645760,1739980247934,-604.0,0.00016267,2]
[353645762,1739980247943,-604.0,0.00016267,2]
[353645764,1739980247953,-604.0,0.00016267,2]
[353645766,1739980247962,-604.0,0.00016267,2]
[353645768,1739980247972,-604.0,0.00016267,2]
[353645770,1739980247981,-604.0,0.00016267,2]
[353645772,1739980247990,-604.0,0.00016267,2]
[353645774,1739980247999,-604.0,0.00016267,2]
[353645776,1739980248008,-604.0,0.00016267,2]
[353645778,1739980248018,-604.0,0.00016267,2]
[353645780,1739980248028,-708.0,0.00016267,2]
[353645782,1739980248037,-708.0,0.00016267,2]
[353645784,1739980248047,-708.0,0.00016267,2]
[353645786,1739980248057,-708.0,0.00016267,2]
[353645788,1739980248066,-708.0,0.00016267,2]
[353645790,1739980248075,-708.0,0.00016267,2]
[353645792,1739980248084,-708.0,0.00016267,2]
[353645794,1739980248093,-708.0,0.00016267,2]
[353645796,1739980248102,-708.0,0.00016267,2]
[353645798,1739980248111,-708.0,0.00016267,2]
[353645800,1739980248121,-708.0,0.00016267,2]
[353645802,1739980248130,-708.0,0.00016267,2]
[353645804,1739980248139,-708.0,0.00016267,2]
[353645806,1739980248148,-708.0,0.00016267,2]
[353645808,1739980248157,-708.0,0.00016267,2]
[353645810,1739980248167,-708.0,0.00016267,2]
[353645812,1739980248176,-708.0,0.00016267,2]
[353645814,1739980248186,-552.97310188,0.00016272,2]
[353645816,1739980248195,-153.0,0.00016356,2]
[353645818,1739980248204,-194.7143422,0.00016356,2]
[353645820,1739980248213,-465.04017587,0.00016371,2]
[353645822,1739980248223,-552.97310188,0.00016372,2]
[353645824,1739980248232,-1000.0,0.0001641,2]
[353645826,1739980248242,-500.83239552,0.0001641,2]
[353645828,1739980248251,-1500.0,0.00016422,2]
[353645830,1739980248261,-1644.4288868,0.00016422,2]
[353645832,1739980248270,-1000.0,0.00016422,2]
[353645834,1739980248280,-876.01183395,0.00016422,2]
[353645836,1739980248290,-1000.0,0.00016438,2]
[353645838,1739980248299,-1000.0,0.00016438,2]
[353645840,1739980248309,-397.53754396,0.00016438,2]
[353645842,1739980248319,-500.0,0.00016438,2]
[353645844,1739980248329,-552.97310188,0.00016472,2]
[353645846,1739980248339,-621.58788628,0.00016479,2]
[353645848,1739980248348,-552.97310188,0.00016572,2]
[353645850,1739980248358,-552.97310188,0.00016672,2]
[353645852,1739980248368,-417.07256354,0.0001671,2]
[353645854,1739980248378,-552.97310188,0.00016772,2]
[353645856,1739980248388,-473.21983655,0.00016787,2]
[353645858,1739980248397,-193.83841,0.000168,10]
[353645860,1739980248407,-552.97310188,0.00016872,2]
[353645862,1739980248417,-552.97310188,0.00016972,2]
[353645864,1739980248429,-1000.0,0.00017,17]
[353645867,1739980248438,-1000.0,0.00017,6]
[353645869,1739980248448,-1000.0,0.00017,2]
[353645871,1739980248458,-500.0,0.00017,7]
[353645873,1739980248467,-500.0,0.00017,7]
[353645874,1739980248477,-500.0,0.00017,7]
[353645876,1739980248487,-500.0,0.00017,7]
[353645879,1739980248497,-500.0,0.00017,7]
[353645880,1739980248507,-500.0,0.00017,7]
[353645881,1739980248517,-500.0,0.00017,7]
[353645882,1739980248528,-500.0,0.00017,7]
[353645883,1739980248537,-566.69,0.00017,7]
[353645884,1739980248547,-500.0,0.00017,7]
[353645885,1739980248558,-160.0,0.00017025,5]
[353645886,1739980248568,-355.163177,0.00017041,2]
[353645887,1739980248578,-355.163177,0.00017041,2]
[353645888,1739980248589,-355.163177,0.00017041,2]
[353645889,1739980248599,-355.163177,0.00017041,2]
[353645890,1739980248608,-355.163177,0.00017041,2]
[353645891,1739980248618,-354.7580366,0.00017041,2]
[353645892,1739980248627,-355.163177,0.00017041,2]
[353645893,1739980248637,-552.97310188,0.00017072,2]
[353645894,1739980248646,-552.97310188,0.00017172,2]
[353645895,1739980248655,-4226.47644599,0.00017199,2]
[353645896,1739980248665,-34222.0,0.000172,5]
[353645897,1739980248675,-552.97310188,0.00017272,2]
[353645898,1739980248684,-4226.47644596,0.00017277,2]
[353645899,1739980248693,-4226.47644596,0.00017355,2]
[353645900,1739980248703,-552.97310188,0.00017372,2]
[353645901,1739980248712,-500.00643651,0.00017412,2]
[353645902,1739980248722,-4226.47644596,0.00017433,2]
[353645904,1739980248731,-2500.0,0.00017447,2]
[353645905,1739980248741,-2500.0,0.00017456,2]
[353645907,1739980248751,-2500.0,0.00017465,2]
[353645909,1739980248760,-552.97310188,0.00017472,2]
[353645911,1739980248770,-2500.0,0.00017474,2]
[353645913,1739980248780,-2500.0,0.00017482,2]
[353645915,1739980248791,-263.376,0.00017485,2]
[353645917,1739980248801,-545.771,0.00017485,2]
[353645919,1739980248811,-1971.0,0.00017485,2]
[353645921,1739980248824,-2311.589,0.00017485,2]
[353645923,1739980248833,-150.0,0.00017485,2]
[353645925,1739980248843,-150.122,0.00017485,2]
[353645927,1739980248854,-2500.0,0.00017491,2]
[353645930,1739980248864,-30000.0,0.000175,10]
[353645931,1739980248873,-30000.0,0.000175,10]
[353645933,1739980248883,-30000.0,0.000175,10]
[353645936,1739980248894,-30000.0,0.000175,10]
[353645937,1739980248904,-30000.0,0.000175,10]
[353645939,1739980248913,-30000.0,0.000175,10]
[353645941,1739980248923,-23325.18117065,0.000175,10]
[353645943,1739980248933,-10000.0,0.000175,2]
[353645945,1739980248943,-417.07256354,0.000175,2]
[353645947,1739980248953,-2500.0,0.000175,2]
[353645949,1739980248963,-156.351102,0.000175,2]
[353645951,1739980248973,-156.351102,0.000175,2]
[353645953,1739980248983,-59843.77513849,0.000175,2]
[353645955,1739980248995,-4226.47644596,0.00017511,2]
[353645958,1739980249005,-154.65899617,0.00017534,4]
[353645960,1739980249015,-161.984055,0.00017538,10]
[353645961,1739980249025,-161.984055,0.0001755,10]
[353645963,1739980249035,-552.97310188,0.00017572,2]
[353645966,1739980249046,-500.0,0.00017573,2]
[353645968,1739980249056,-500.0,0.00017573,2]
[353645970,1739980249066,-500.0,0.00017573,2]
[353645971,1739980249077,-500.0,0.00017573,2]
[353645974,1739980249090,-500.0,0.00017573,2]
[353645976,1739980249100,-163.32279024,0.00017573,2]
[353645978,1739980249111,-500.0,0.00017573,2]
[353645980,1739980249120,-431.13927372,0.00017573,2]
[353645981,1739980249130,-500.0,0.00017573,2]
[353645983,1739980249140,-500.0,0.00017573,2]
[353645985,1739980249150,-500.0,0.00017573,2]
[353645987,1739980249161,-500.0,0.00017573,2]
[353645989,1739980249171,-4226.47644596,0.00017588,2]
[353645991,1739980249181,-160.0,0.00017599,2]
[353645993,1739980249192,-160.0,0.00017599,2]
[353645995,1739980249201,-160.0,0.00017599,2]
[353645997,1739980249211,-29378.33441217,0.000176,5]
[353645999,1739980249221,-2349195.58275125,0.000176,5]
[353646024,1739980249451,-294.76,0.00010959,2]
[353646026,1739980249462,-355.163177,0.00017041,2]
[353646028,1739980249472,-396.0,0.00017485,2]
[353646030,1739980249483,-748.126823,0.000175,2]
[353646032,1739980249495,-1465.038953,0.000175,2]
[353646034,1739980249505,-1220.564166,0.00017599,2]
[353646036,1739980249514,-971066.06306029,0.000176,5]
[353646047,1739980249614,-500.0,0.00013698,2]
[353646050,1739980249623,-500.0,0.0001378,2]
[353646052,1739980249633,-309029.10238263,0.000176,5]
[353646204,1739980686422,-2000.0,0.00017845,60]
[353646205,1739980686490,-500.0,0.000185,60]
[353646206,1739980686667,-500.0,0.000185,60]
[353646207,1739980686702,-500.0,0.000185,60]
[353646208,1739980686729,-500.0,0.000185,60]
[353646209,1739980686755,-444.60473181,0.000185,60]
[353646210,1739980686783,-3023.91875002,0.000189,60]
[353646211,1739980686821,-298.45099801,0.00020512,120]
[353646212,1739980686874,-2194.79622573,0.0002258,60]